bitfinex/quotes_BTCUSD_20240817
["timestamp","ask_amount","ask_price","bid_price","bid_amount"]
[1723887400917,0.0097705,59523.0,59522.0,1.56475515]
[1723887401085,0.0097705,59523.0,59522.0,1.92695593]
[1723887401503,0.0097705,59523.0,59522.0,1.92890032]
[1723887401907,0.0097705,59523.0,59522.0,1.93290032]
[1723887401908,0.0107705,59523.0,59522.0,1.93290032]
[1723887402164,0.0097705,59523.0,59522.0,1.92890032]
[1723887402366,0.0198657,59526.0,59525.0,1.27891739]
[1723887402570,0.0198657,59526.0,59525.0,1.91926593]
[1723887402692,0.0198657,59526.0,59525.0,1.92845665]
[1723887403314,0.0198657,59526.0,59525.0,1.91926593]
[1723887403517,0.0208657,59526.0,59525.0,1.92363554]
[1723887404977,0.0208657,59526.0,59525.0,1.68564154]
[1723887405562,0.0208657,59526.0,59525.0,1.68269715]
[1723887405737,0.0208657,59526.0,59525.0,1.68369715]
[1723887406577,0.0208657,59526.0,59525.0,1.68269715]
[1723887407829,0.0208657,59526.0,59525.0,1.68564154]
[1723887408019,0.0208657,59526.0,59525.0,1.70957174]
[1723887410912,0.0208657,59526.0,59525.0,1.96156574]
[1723887411158,0.0208657,59526.0,59525.0,1.88667174]
[1723887411313,0.0208657,59526.0,59525.0,1.70957174]
[1723887411716,0.0208657,59526.0,59525.0,1.70957144]
[1723887412316,0.0208657,59526.0,59525.0,1.70662705]
[1723887414550,0.0208657,59526.0,59525.0,1.70762705]
[1723887415178,0.0208657,59526.0,59525.0,1.95962105]
[1723887415367,0.0208657,59526.0,59525.0,1.70762705]
[1723887415782,0.0208657,59526.0,59525.0,1.95962105]
[1723887415984,0.0208657,59526.0,59525.0,1.961562]
[1723887416207,0.0208657,59526.0,59525.0,1.709568]
[1723887416407,0.0208657,59526.0,59525.0,1.961562]
[1723887417774,0.0208657,59526.0,59525.0,1.947562]
[1723887417964,0.0218657,59526.0,59525.0,1.961562]
[1723887418258,0.0208657,59526.0,59525.0,1.957562]
[1723887418487,0.0208657,59526.0,59525.0,1.97880819]
[1723887418662,0.0208657,59526.0,59525.0,1.971562]
[1723887418868,0.0208657,59526.0,59525.0,1.98075256]
[1723887419062,0.0208657,59526.0,59525.0,1.97780817]
[1723887419384,0.0208657,59526.0,59525.0,1.97880817]
[1723887419588,0.0208657,59526.0,59525.0,1.97780817]
[1723887419966,0.0208657,59526.0,59525.0,1.94469115]
[1723887420189,0.0208657,59526.0,59525.0,1.97780628]
[1723887420385,0.0208657,59526.0,59525.0,1.98075067]
[1723887420972,0.0208657,59526.0,59525.0,1.98075069]
[1723887421169,0.0208657,59526.0,59525.0,1.97156013]
[1723887421424,0.0208657,59526.0,59525.0,1.95682637]
[1723887421574,0.0208657,59526.0,59525.0,1.98075103]
[1723887422874,0.0208657,59526.0,59525.0,1.97156108]
[1723887423070,0.0208657,59526.0,59525.0,1.98075201]
[1723887423979,0.0208657,59526.0,59525.0,1.98275201]
[1723887425005,0.0208657,59526.0,59525.0,1.96775201]
[1723887425185,0.0208657,59526.0,59525.0,1.96875201]
[1723887425503,0.0208657,59526.0,59525.0,1.98275201]
[1723887425707,0.0198657,59526.0,59525.0,1.96875201]
[1723887426019,0.0198657,59526.0,59525.0,1.98275201]
[1723887426789,0.0198657,59526.0,59525.0,1.98075201]
[1723887426993,0.0198657,59526.0,59525.0,1.97156108]
[1723887427326,0.0198657,59526.0,59525.0,1.98075194]
[1723887427519,0.0198657,59526.0,59525.0,1.96750154]
[1723887427731,0.0198657,59526.0,59525.0,2.00061779]
[1723887428859,0.0198657,59526.0,59525.0,2.00061965]
[1723887430394,0.0198657,59526.0,59525.0,2.03955451]
[1723887431147,0.0198657,59526.0,59525.0,2.03955437]
[1723887435359,0.0198657,59526.0,59525.0,2.00062894]
[1723887435532,0.0198657,59526.0,59525.0,2.03957386]
[1723887436116,0.0198657,59526.0,59525.0,1.94599155]
[1723887436317,0.0198657,59526.0,59525.0,2.03979155]
[1723887436984,0.0198657,59526.0,59525.0,2.03784716]
[1723887439399,0.0198657,59526.0,59525.0,2.03784713]
[1723887439780,0.0198657,59526.0,59525.0,1.96555715]
[1723887439983,0.0198657,59526.0,59525.0,2.03784701]
[1723887442435,0.0198657,59526.0,59525.0,2.08780934]
[1723887443460,0.0198657,59526.0,59525.0,2.03784701]
[1723887443874,0.0198657,59526.0,59525.0,2.03784746]
[1723887444507,0.0198657,59526.0,59525.0,2.48538398]
[1723887445289,0.0198657,59526.0,59525.0,2.48732837]
[1723887445438,0.0198657,59526.0,59525.0,2.51230954]
[1723887446432,0.0198657,59526.0,59525.0,2.41238488]
[1723887447065,0.0198657,59526.0,59525.0,2.41238551]
[1723887448271,0.0198657,59526.0,59525.0,2.41238579]
[1723887452348,0.0198657,59526.0,59525.0,2.41238985]
[1723887453190,0.0198657,59526.0,59525.0,2.31564546]
[1723887453420,0.0198657,59526.0,59525.0,2.53583739]
[1723887453621,0.0198657,59526.0,59525.0,2.41238985]
[1723887457425,0.0198657,59526.0,59525.0,2.41238897]
[1723887459234,0.0198657,59526.0,59525.0,2.31564458]
[1723887459498,0.0198657,59526.0,59525.0,2.40944458]
[1723887459746,0.0198657,59526.0,59525.0,2.40966312]
[1723887459997,0.0198657,59526.0,59525.0,2.26866312]
[1723887460926,0.0198657,59526.0,59525.0,2.17486312]
[1723887461148,0.0198657,59526.0,59525.0,2.26866312]
[1723887461396,0.0198657,59526.0,59525.0,2.26866382]
[1723887461914,0.0198657,59526.0,59525.0,2.26966382]
[1723887462356,0.0198657,59526.0,59525.0,2.27160821]
[1723887463348,0.0198657,59526.0,59525.0,2.35290821]
[1723887463552,0.0198657,59526.0,59525.0,2.41640821]
[1723887464212,0.0198657,59526.0,59525.0,2.35308948]
[1723887464472,0.0198657,59526.0,59525.0,2.41640488]
[1723887464694,0.0198657,59526.0,59525.0,2.41640489]
[1723887466890,0.0198657,59526.0,59525.0,2.3321605]
[1723887467115,0.0198657,59526.0,59525.0,2.35485852]
[1723887467495,0.0198657,59526.0,59525.0,2.32977725]
[1723887467914,0.0198657,59526.0,59525.0,2.47557725]
[1723887468116,0.0198657,59526.0,59525.0,2.47752164]
[1723887468321,0.0198657,59526.0,59525.0,2.54181242]
[1723887468568,0.0198657,59526.0,59525.0,2.50261104]
[1723887468767,0.0198657,59526.0,59525.0,2.54181242]
[1723887468991,0.0198657,59526.0,59525.0,2.50261104]
[1723887469288,0.0198657,59526.0,59525.0,2.54181242]
[1723887469442,0.0198657,59526.0,59525.0,2.3772211]
[1723887469649,0.0198657,59526.0,59525.0,2.41642248]
[1723887471790,0.0198657,59526.0,59525.0,3.11642248]
[1723887472549,0.0198657,59526.0,59525.0,3.11642997]
[1723887473693,0.0198657,59526.0,59525.0,3.11842997]
[1723887473895,0.0198657,59526.0,59525.0,2.41842997]
[1723887477213,0.0198657,59526.0,59525.0,2.41842996]
[1723887480150,0.0198657,59526.0,59525.0,2.41842845]
[1723887480350,0.0198657,59526.0,59525.0,2.4184289]
[1723887481275,0.0198657,59526.0,59525.0,2.37922428]
[1723887481479,0.0198657,59526.0,59525.0,2.4184289]
[1723887481675,0.0198657,59526.0,59525.0,2.37922428]
[1723887481930,0.0198657,59526.0,59525.0,2.4184289]
[1723887482133,0.0198657,59526.0,59525.0,2.37922428]
[1723887482337,0.0198657,59526.0,59525.0,2.4184289]
[1723887482961,7e-07,59527.0,59526.0,1.535059]
[1723887483160,7e-07,59527.0,59526.0,2.2747409]
[1723887483481,7e-07,59527.0,59526.0,2.45890178]
[1723887483926,7e-07,59527.0,59526.0,3.15890178]
[1723887484273,0.0002,59539.0,59526.0,3.15890178]
[1723887484274,5e-07,59539.0,59538.0,0.006314]
[1723887484476,0.10867542,59556.0,59555.0,0.12730361]
[1723887484737,0.10867542,59556.0,59555.0,1.57588965]
[1723887484932,0.10867542,59556.0,59555.0,1.93695415]
[1723887485083,0.10867542,59556.0,59555.0,1.98895232]
[1723887485287,4.2e-07,59559.0,59558.0,0.88586161]
[1723887485548,4.2e-07,59559.0,59558.0,1.57250573]
[1723887485746,4.2e-07,59559.0,59558.0,1.46259515]
[1723887485943,4.2e-07,59559.0,59558.0,1.52307115]
[1723887486369,4.2e-07,59559.0,59558.0,1.60306429]
[1723887486538,4.2e-07,59559.0,59558.0,1.55462971]
[1723887487113,4.2e-07,59559.0,59558.0,1.56862971]
[1723887487346,4.2e-07,59559.0,59558.0,1.55462971]
[1723887487545,0.06550042,59559.0,59558.0,1.1986205]
[1723887487746,0.14830042,59559.0,59558.0,1.28521615]
[1723887487952,0.14830042,59559.0,59558.0,1.29242103]
[1723887488350,0.14830042,59559.0,59558.0,1.30642103]
[1723887488809,0.14830042,59559.0,59558.0,1.01936115]
[1723887489058,0.14830042,59559.0,59558.0,0.18973242]
[1723887489284,0.14830042,59559.0,59558.0,0.31565942]
[1723887489493,0.14830042,59559.0,59558.0,0.56788403]
[1723887489693,0.14830042,59559.0,59558.0,0.81973903]
[1723887489896,0.14830042,59559.0,59558.0,0.83373903]
[1723887490092,0.14830042,59559.0,59558.0,0.91353903]
[1723887490790,0.14830042,59559.0,59558.0,0.92753903]
[1723887491277,0.14830042,59559.0,59558.0,0.85673903]
[1723887493044,0.14830042,59559.0,59558.0,1.20239403]
[1723887493469,0.14830042,59559.0,59558.0,1.20339403]
[1723887494082,0.14830042,59559.0,59558.0,1.30339403]
[1723887494456,0.08280042,59559.0,59558.0,1.32460297]
[1723887495059,4.2e-07,59559.0,59558.0,1.32460297]
[1723887495243,4.2e-07,59559.0,59558.0,1.30339403]
[1723887495449,0.14630335,59562.0,59561.0,0.630605]
[1723887495649,0.14630335,59562.0,59561.0,1.01895954]
[1723887496475,0.14630335,59562.0,59561.0,1.03095954]
[1723887496877,0.14630335,59562.0,59561.0,1.04195954]
[1723887498804,0.14630335,59562.0,59561.0,0.94715954]
[1723887499012,0.14630335,59562.0,59561.0,0.42502303]
[1723887499222,0.14630335,59562.0,59561.0,0.67686503]
[1723887499870,0.14630335,59562.0,59561.0,0.19873242]
[1723887500073,0.14630335,59562.0,59561.0,0.32465342]
[1723887500482,0.251822,59566.0,59561.0,0.19873242]
[1723887500615,0.251825,59565.0,59561.0,0.02717788]
[1723887500814,0.125915,59564.0,59561.0,0.00417788]
[1723887501015,0.0938,59567.0,59561.0,0.00417788]
[1723887501331,0.125913,59565.0,59561.0,0.00417788]
[1723887501757,0.125913,59565.0,59562.0,0.00417788]
[1723887502162,0.0938,59567.0,59562.0,0.00417788]
[1723887502381,0.134147,59568.0,59563.0,0.001]
[1723887502583,0.00824,59568.0,59567.0,0.377725]
[1723887502787,0.00824,59568.0,59567.0,0.29746254]
[1723887503220,0.00824,59568.0,59567.0,0.54927954]
[1723887503432,0.06374,59568.0,59567.0,0.29746254]
[1723887503843,0.06374,59568.0,59567.0,0.30164042]
[1723887504251,0.06674,59568.0,59567.0,0.17573242]
[1723887504453,0.06474,59568.0,59567.0,0.17573242]
[1723887504613,0.06374,59568.0,59567.0,0.30201003]
[1723887504994,0.06574,59568.0,59567.0,0.30201003]
[1723887505213,0.06674,59568.0,59567.0,0.30201003]
[1723887505424,0.06674,59568.0,59567.0,0.30164042]
[1723887505639,0.06674,59568.0,59567.0,0.17573242]
[1723887506092,0.06474,59568.0,59567.0,0.17573242]
[1723887506339,0.06574,59568.0,59567.0,0.17573242]
[1723887506553,0.06474,59568.0,59567.0,0.17573242]
[1723887506975,0.06574,59568.0,59567.0,0.30164042]
[1723887508608,0.05444,59568.0,59567.0,0.80564403]
[1723887508819,0.01024,59568.0,59567.0,0.80564403]
[1723887509474,0.01024,59568.0,59567.0,0.80664403]
[1723887511034,0.01024,59568.0,59567.0,0.80564403]
[1723887512373,0.01024,59568.0,59567.0,0.80664403]
[1723887513316,0.01024,59568.0,59567.0,0.80564403]
[1723887515298,0.01024,59568.0,59567.0,0.55382703]
[1723887515906,0.06574,59568.0,59567.0,0.30164042]
[1723887516077,0.06374,59568.0,59567.0,0.30164042]
[1723887516638,0.06374,59568.0,59567.0,0.17973242]
[1723887517137,0.06374,59568.0,59567.0,0.17573242]
[1723887517372,0.189646,59568.0,59567.0,0.00717788]
[1723887517609,0.694272,59568.0,59567.0,0.00717788]
[1723887517783,1.00399736,59568.0,59567.0,0.00717788]
[1723887518040,1.00399736,59568.0,59558.0,0.0009064]
[1723887518041,0.673827,59559.0,59558.0,0.0009064]
[1723887518186,0.77544909,59559.0,59558.0,0.0009064]
[1723887518383,0.70210897,59559.0,59558.0,0.0009064]
[1723887518584,0.82111686,59559.0,59558.0,0.0009064]
[1723887518767,0.81911686,59559.0,59558.0,0.0009064]
[1723887519186,0.82321686,59559.0,59558.0,0.0009064]
[1723887519579,0.79693489,59559.0,59558.0,0.0009064]
[1723887519785,0.79793489,59559.0,59558.0,0.0009064]
[1723887519988,0.79893489,59559.0,59558.0,0.0009064]
[1723887520189,0.82422036,59559.0,59558.0,0.0009064]
[1723887520392,0.44561886,59559.0,59558.0,0.0009064]
[1723887520604,0.50242465,59559.0,59558.0,0.0009064]
[1723887520808,0.12664865,59559.0,59558.0,0.0009064]
[1723887521023,0.177225,59559.0,59558.0,0.0009064]
[1723887521531,0.0513,59559.0,59558.0,0.0009064]
[1723887521977,0.003,59559.0,59558.0,0.0009064]
[1723887522926,0.125922,59561.0,59558.0,0.0009064]
[1723887523130,0.002,59559.0,59558.0,0.0009064]
[1723887523334,0.002,59559.0,59558.0,0.0019064]
[1723887523335,0.007,59559.0,59558.0,0.0019064]
[1723887523759,0.007,59559.0,59558.0,0.0009064]
[1723887523930,0.005,59559.0,59558.0,0.0009064]
[1723887524135,0.005,59559.0,59558.0,0.0019064]
[1723887525041,0.127922,59561.0,59558.0,0.0019064]
[1723887525411,0.004,59559.0,59558.0,0.0009064]
[1723887525636,0.006,59559.0,59558.0,0.0009064]
[1723887525845,0.01,59559.0,59558.0,0.0009064]
[1723887526054,0.135925,59559.0,59558.0,0.0009064]
[1723887526318,0.125925,59559.0,59558.0,0.0009064]
[1723887526539,0.131925,59559.0,59558.0,0.0009064]
[1723887526987,0.129925,59559.0,59558.0,0.0009064]
[1723887527420,0.176125,59559.0,59558.0,0.0009064]
[1723887528190,0.180125,59559.0,59558.0,0.0009064]
[1723887528390,0.423976,59559.0,59558.0,0.0009064]
[1723887528564,0.421976,59559.0,59558.0,0.0009064]
[1723887528766,0.425976,59559.0,59558.0,0.0009064]
[1723887528970,0.427976,59559.0,59558.0,0.0009064]
[1723887529204,0.423976,59559.0,59558.0,0.0009064]
[1723887529416,0.427976,59559.0,59558.0,0.0009064]
[1723887529989,0.431976,59559.0,59558.0,0.0009064]
[1723887530880,0.01,59559.0,59558.0,0.0009064]
[1723887531285,0.01,59559.0,59558.0,0.1268334]
[1723887532017,0.01,59559.0,59558.0,0.0009064]
[1723887532218,0.002,59559.0,59558.0,0.29838794]
[1723887532443,0.125913,59565.0,59560.0,0.125923]
[1723887532643,0.125913,59565.0,59560.0,0.29747754]
[1723887532847,0.125913,59565.0,59561.0,0.17155454]
[1723887533677,0.05025926,59566.0,59561.0,0.17155454]
[1723887534801,0.004,59565.0,59561.0,0.17155454]
[1723887535130,0.125912,59565.0,59561.0,0.29747554]
[1723887535376,0.125912,59565.0,59561.0,0.29847554]
[1723887535787,0.127912,59565.0,59561.0,0.29847554]
[1723887536131,0.127912,59565.0,59558.0,0.0009064]
[1723887536132,0.0442,59562.0,59558.0,0.0009064]
[1723887536340,0.0442,59562.0,59559.0,0.17155454]
[1723887536539,0.0442,59562.0,59558.0,0.0009064]
[1723887536540,0.377776,59559.0,59558.0,0.0009064]
[1723887536915,0.125925,59559.0,59558.0,0.0009064]
[1723887537157,0.377776,59559.0,59558.0,0.0009064]
[1723887537566,0.125925,59559.0,59558.0,0.0009064]
[1723887538210,0.49739075,59559.0,59558.0,0.0029064]
[1723887538416,0.47225528,59559.0,59558.0,0.0029064]
[1723887538624,0.72410628,59559.0,59558.0,0.0029064]
[1723887539028,0.72410628,59559.0,59558.0,0.0009064]
[1723887539152,0.72810628,59559.0,59558.0,0.0009064]
[1723887539355,0.73010628,59559.0,59558.0,0.0009064]
[1723887539878,0.72810628,59559.0,59558.0,0.0009064]
[1723887540092,0.73010628,59559.0,59558.0,0.0009064]
[1723887540632,0.67645739,59559.0,59558.0,0.0009064]
[1723887540837,0.72673259,59559.0,59558.0,0.0009064]
[1723887540995,0.73073251,59559.0,59558.0,0.0009064]
[1723887541196,0.68045739,59559.0,59558.0,0.0009064]
[1723887541812,0.73073389,59559.0,59558.0,0.0009064]
[1723887542419,0.68045739,59559.0,59558.0,0.0009064]
[1723887545146,0.42860639,59559.0,59558.0,0.0009064]
[1723887545370,0.006,59559.0,59558.0,0.0009064]
[1723887545977,0.131925,59559.0,59558.0,0.0009064]
[1723887546320,0.176125,59559.0,59558.0,0.0009064]
[1723887546911,0.131925,59559.0,59558.0,0.0009064]
[1723887547446,0.006,59559.0,59558.0,0.0833064]
[1723887548553,0.006,59559.0,59558.0,0.44388794]
[1723887548760,0.006,59559.0,59558.0,0.23556094]
[1723887548945,0.006,59559.0,59558.0,0.29838794]
[1723887550936,0.006,59559.0,59558.0,0.1268334]
[1723887551351,0.006,59559.0,59558.0,0.1278334]
[1723887551694,0.006,59559.0,59558.0,0.0009064]
[1723887554610,0.00579795,59559.0,59558.0,0.0009064]
[1723887555782,0.004,59559.0,59558.0,0.0009064]
[1723887556162,0.007,59559.0,59558.0,0.0009064]
[1723887556329,0.003,59559.0,59558.0,0.0009064]
[1723887556529,0.17620031,59560.0,59558.0,0.0009064]
[1723887556747,0.004,59559.0,59558.0,0.0009064]
[1723887557414,0.05427631,59559.0,59558.0,0.0009064]
[1723887558035,0.05427631,59559.0,59558.0,0.0019064]
[1723887559224,0.18020131,59559.0,59558.0,0.0019064]
[1723887559420,0.129925,59559.0,59558.0,0.0019064]
[1723887559647,0.20533946,59559.0,59558.0,0.0019064]
[1723887560029,0.07941446,59559.0,59558.0,0.0019064]
[1723887560646,0.004,59559.0,59558.0,0.0019064]
[1723887560849,0.25561577,59559.0,59558.0,0.0019064]
[1723887561075,0.27460594,59559.0,59558.0,0.0019064]
[1723887561352,0.14891517,59559.0,59558.0,0.0019064]
[1723887561557,0.27460594,59559.0,59558.0,0.0019064]
[1723887562189,0.27460594,59559.0,59558.0,0.0009064]
[1723887562395,0.27443258,59559.0,59558.0,0.0009064]
[1723887562565,0.40336819,59559.0,59558.0,0.0009064]
[1723887562766,0.4844819,59559.0,59558.0,0.0009064]
[1723887562998,0.92835287,59559.0,59558.0,0.0009064]
[1723887563203,0.93135287,59559.0,59558.0,0.0009064]
[1723887563408,1.01286473,59559.0,59558.0,0.0009064]
[1723887563614,1.00686473,59559.0,59558.0,0.0009064]
[1723887563814,1.00986473,59559.0,59558.0,0.0009064]
[1723887564226,1.13604282,59559.0,59558.0,0.0009064]
[1723887564455,1.14104282,59559.0,59558.0,0.0009064]
[1723887564829,1.13304282,59559.0,59558.0,0.0009064]
[1723887565413,1.13704282,59559.0,59558.0,0.0009064]
[1723887565812,1.01086473,59559.0,59558.0,0.0009064]
[1723887566012,1.01586473,59559.0,59558.0,0.0009064]
[1723887566947,1.01186473,59559.0,59558.0,0.0009064]
[1723887567177,1.01586473,59559.0,59558.0,0.0019064]
[1723887567397,1.01386473,59559.0,59558.0,0.0019064]
[1723887567597,1.01086473,59559.0,59558.0,0.0019064]
[1723887567748,1.01986473,59559.0,59558.0,0.0029064]
[1723887567953,1.02186473,59559.0,59558.0,0.0029064]
[1723887568403,1.01986473,59559.0,59558.0,0.0029064]
[1723887568925,1.01086473,59559.0,59558.0,0.0019064]
[1723887569292,1.09249133,59559.0,59558.0,0.0029064]
[1723887569904,1.12681673,59559.0,59558.0,0.0029064]
[1723887570500,1.12281673,59559.0,59558.0,0.0019064]
[1723887570707,0.76820187,59559.0,59558.0,0.0009064]
[1723887570907,0.76820187,59559.0,59558.0,0.0019064]
[1723887570908,0.74991919,59559.0,59558.0,0.0019064]
[1723887571108,0.75091919,59559.0,59558.0,0.0019064]
[1723887571459,0.75845629,59559.0,59558.0,0.0019064]
[1723887571763,0.76745629,59559.0,59558.0,0.0019064]
[1723887571963,0.77545629,59559.0,59558.0,0.0029064]
[1723887572167,0.80174064,59559.0,59558.0,0.0029064]
[1723887572380,0.76645629,59559.0,59558.0,0.0019064]
[1723887572536,0.77545629,59559.0,59558.0,0.0029064]
[1723887572749,0.77628129,59559.0,59558.0,0.0029064]
[1723887575906,0.77709566,59559.0,59558.0,0.0029064]
[1723887579173,0.05376866,59559.0,59558.0,0.0029064]
[1723887579379,0.15174995,59559.0,59558.0,0.1433064]
[1723887579580,0.17969361,59559.0,59558.0,0.1433064]
[1723887579788,0.17969366,59559.0,59558.0,0.1433064]
[1723887579954,0.30561861,59559.0,59558.0,0.1433064]
[1723887580626,0.29089423,59559.0,59558.0,0.1423064]
[1723887580855,0.28889423,59559.0,59558.0,0.1423064]
[1723887581038,0.29689423,59559.0,59558.0,0.1433064]
[1723887581240,0.48987735,59559.0,59558.0,0.0029064]
[1723887581444,0.8959976,59559.0,59558.0,0.0019064]
[1723887581680,1.16673993,59559.0,59558.0,0.0019064]
[1723887581883,1.40241764,59559.0,59558.0,0.0019064]
[1723887582059,1.268819,59559.0,59558.0,0.0019064]
[1723887582326,1.43188623,59559.0,59558.0,0.0009064]
[1723887582532,1.43888623,59559.0,59558.0,0.0019064]
[1723887582756,1.43388623,59559.0,59558.0,0.0019064]
[1723887583818,1.52058623,59559.0,59558.0,0.0009064]
[1723887584169,1.53258623,59559.0,59558.0,0.0019064]
[1723887584610,1.54058623,59559.0,59558.0,0.0029064]
[1723887585015,1.5270125,59559.0,59558.0,0.0029064]
[1723887585525,1.36725426,59559.0,59558.0,0.0029064]
[1723887585676,1.53727096,59559.0,59558.0,0.0029064]
[1723887586309,1.36725426,59559.0,59558.0,0.0029064]
[1723887586726,1.53723844,59559.0,59558.0,0.0029064]
[1723887586981,1.3615839,59559.0,59558.0,0.0029064]
[1723887588350,0.53610887,59559.0,59558.0,0.1429064]
[1723887588550,0.5984486,59559.0,59558.0,0.1429064]
[1723887588760,0.44739125,59559.0,59558.0,0.1429064]
[1723887589029,0.42110871,59559.0,59558.0,0.1429064]
[1723887590623,0.44739235,59559.0,59558.0,0.1429064]
[1723887590802,0.42110871,59559.0,59558.0,0.1429064]
[1723887591421,0.44739253,59559.0,59558.0,0.1429064]
[1723887591627,0.42110871,59559.0,59558.0,0.1429064]
[1723887591923,0.44739287,59559.0,59558.0,0.1429064]
[1723887592306,0.44739287,59559.0,59558.0,0.0629064]
[1723887593095,0.44739287,59559.0,59558.0,0.0029064]
[1723887597592,0.85030122,59559.0,59558.0,0.0029064]
[1723887597793,0.69924387,59559.0,59558.0,0.0029064]
[1723887598226,0.76160044,59559.0,59558.0,0.0029064]
[1723887598437,0.91365779,59559.0,59558.0,0.0029064]
[1723887598649,0.70287426,59559.0,59558.0,0.0029064]
[1723887599062,0.95172526,59559.0,59558.0,0.0029064]
[1723887599267,1.04423791,59559.0,59558.0,0.0029064]
[1723887599472,1.04623791,59559.0,59558.0,0.0029064]
[1723887599679,1.04723791,59559.0,59558.0,0.0029064]
[1723887600121,1.18616012,59559.0,59558.0,0.0029064]
[1723887600327,1.57189884,59559.0,59558.0,0.0029064]
[1723887600734,1.40601466,59559.0,59558.0,0.0029064]
[1723887601707,1.40140814,59559.0,59558.0,0.0029064]
[1723887602660,1.26248593,59559.0,59558.0,0.0029064]
[1723887602865,1.43248544,59559.0,59558.0,0.0029064]
[1723887603039,1.42838544,59559.0,59558.0,0.0029064]
[1723887606276,1.43046854,59559.0,59558.0,0.0029064]
[1723887608635,1.26046181,59559.0,59558.0,0.0029064]
[1723887608886,1.42549362,59559.0,59558.0,0.0029064]
[1723887609461,1.59551039,59559.0,59558.0,0.0029064]
[1723887610721,1.59489647,59559.0,59558.0,0.0029064]
[1723887611459,1.42986466,59559.0,59558.0,0.0029064]
[1723887613899,1.25985283,59559.0,59558.0,0.0029064]
[1723887614706,1.43315745,59559.0,59558.0,0.0029064]
[1723887619256,1.78500845,59559.0,59558.0,0.00261577]
[1723887619477,1.78910845,59559.0,59558.0,0.00261577]
[1723887619613,1.94916088,59559.0,59558.0,0.00261577]
[1723887620304,1.94116088,59559.0,59558.0,0.00161577]
[1723887620505,1.93716088,59559.0,59558.0,0.00161577]
[1723887620643,1.95116088,59559.0,59558.0,0.00261577]
[1723887620841,1.95116088,59559.0,59558.0,0.00161577]
[1723887620842,2.19103012,59559.0,59558.0,0.00161577]
[1723887621410,1.95116088,59559.0,59558.0,0.00261577]
[1723887621964,1.52365534,59559.0,59558.0,0.00261577]
[1723887622166,1.57315534,59559.0,59558.0,0.00261577]
[1723887622576,1.82500634,59559.0,59558.0,0.00261577]
[1723887625287,1.82500634,59559.0,59530.0,0.0759]
[1723887625288,0.125984,59531.0,59530.0,0.0759]
[1723887625491,0.723622,59531.0,59530.0,0.0759]
[1723887625792,0.723622,59531.0,59530.0,0.1397]
[1723887625793,0.80710004,59531.0,59530.0,0.1397]
[1723887625997,0.50517186,59531.0,59530.0,0.1397]
[1723887626197,0.38591426,59531.0,59530.0,0.1397]
[1723887627025,0.38891426,59531.0,59530.0,0.1397]
[1723887627230,0.38691426,59531.0,59530.0,0.1397]
[1723887627542,0.46241802,59531.0,59530.0,0.1397]
[1723887627702,0.46141802,59531.0,59530.0,0.1397]
[1723887628171,0.46441802,59531.0,59530.0,0.1397]
[1723887628398,0.38891426,59531.0,59530.0,0.1397]
[1723887628646,0.4442263,59531.0,59530.0,0.1397]
[1723887628868,0.39391426,59531.0,59530.0,0.1397]
[1723887629070,0.44422664,59531.0,59530.0,0.1397]
[1723887629414,0.43922664,59531.0,59530.0,0.1397]
[1723887629643,0.43622664,59531.0,59530.0,0.1397]
[1723887629874,0.39291426,59531.0,59530.0,0.1397]
[1723887630098,0.57075146,59531.0,59530.0,0.1397]
[1723887630298,0.48361426,59531.0,59530.0,0.1397]
[1723887630530,0.48561426,59531.0,59530.0,0.1397]
[1723887631132,0.49061426,59531.0,59530.0,0.1397]
[1723887631522,0.48561426,59531.0,59530.0,0.1397]
[1723887631723,0.47961426,59531.0,59530.0,0.1397]
[1723887631967,0.48461426,59531.0,59530.0,0.1397]
[1723887632429,0.73158326,59531.0,59530.0,0.1397]
[1723887632634,0.78689564,59531.0,59530.0,0.1397]
[1723887632827,0.79089564,59531.0,59530.0,0.1406075]
[1723887633169,0.74058326,59531.0,59530.0,0.1406075]
[1723887633373,0.7838565,59531.0,59530.0,0.1406075]
[1723887633572,0.80307998,59531.0,59530.0,0.1406075]
[1723887633751,0.81907998,59531.0,59530.0,0.1406075]
[1723887633951,0.81707998,59531.0,59530.0,0.1406075]
[1723887634737,0.80907998,59531.0,59530.0,0.1406075]
[1723887634938,0.65710674,59531.0,59530.0,0.1406075]
[1723887635259,0.75980674,59531.0,59530.0,0.1406075]
[1723887635928,0.74058326,59531.0,59530.0,0.1406075]
[1723887636138,0.74858326,59531.0,59530.0,0.1406075]
[1723887640201,0.79883582,59531.0,59530.0,0.1406075]
[1723887640408,0.74858326,59531.0,59530.0,0.1406075]
[1723887640601,0.79883582,59531.0,59530.0,0.1406075]
[1723887640970,0.74858326,59531.0,59530.0,0.1406075]
[1723887641967,0.79883582,59531.0,59530.0,0.1406075]
[1723887642177,0.79884031,59531.0,59530.0,0.1406075]
[1723887643228,0.87194669,59531.0,59530.0,0.1406075]
[1723887643661,1.12391569,59531.0,59530.0,0.1406075]
[1723887643869,1.12391569,59531.0,59530.0,0.0647075]
[1723887644709,1.00118265,59531.0,59530.0,0.0647075]
[1723887644924,1.00118265,59531.0,59530.0,0.1470075]
[1723887644925,0.99218265,59531.0,59530.0,0.1470075]
[1723887645124,0.98418265,59531.0,59530.0,0.1470075]
[1723887645330,1.00318265,59531.0,59530.0,0.1470075]
[1723887645762,1.00255226,59531.0,59530.0,0.1470075]
[1723887645961,0.75058326,59531.0,59530.0,0.1470075]
[1723887646404,0.90219555,59531.0,59530.0,0.1470075]
[1723887647281,0.90282594,59531.0,59530.0,0.1470075]
[1723887648280,0.74221365,59531.0,59530.0,0.1470075]
[1723887648528,0.73221365,59531.0,59530.0,0.1470075]
[1723887648860,0.74921365,59531.0,59530.0,0.1470075]
[1723887651335,0.82462123,59531.0,59530.0,0.1470075]
[1723887651737,0.81662123,59531.0,59530.0,0.1470075]
[1723887652264,0.82562123,59531.0,59530.0,0.1470075]
[1723887652887,0.81662123,59531.0,59530.0,0.1470075]
[1723887653286,0.74921365,59531.0,59530.0,0.1470075]
[1723887653534,0.40291426,59531.0,59530.0,0.1470075]
[1723887653755,0.54689744,59531.0,59530.0,0.1470075]
[1723887654143,0.54689717,59531.0,59530.0,0.1470075]
[1723887655114,0.57203863,59531.0,59530.0,0.1470075]
[1723887655726,0.57206053,59531.0,59530.0,0.1470075]
[1723887656122,0.64207255,59531.0,59530.0,0.1470075]
[1723887656273,0.61577899,59531.0,59530.0,0.1470075]
[1723887656495,0.64207485,59531.0,59530.0,0.1470075]
[1723887656879,0.74858326,59531.0,59530.0,0.1470075]
[1723887657059,0.49661426,59531.0,59530.0,0.1470075]
[1723887657266,0.51518657,59531.0,59530.0,0.1470075]
[1723887657465,0.76778596,59531.0,59530.0,0.1470075]
[1723887657716,0.89467645,59531.0,59530.0,0.1470075]
[1723887657947,0.79408143,59531.0,59530.0,0.1470075]
[1723887658348,0.89467645,59531.0,59530.0,0.1470075]